bitfinex-derivatives/quotes_SOLF0:USTF0_20251109
["timestamp","ask_amount","ask_price","bid_price","bid_amount"]
[1762696813659,5.6286,159.94,159.92,3.00187569]
[1762696814160,3.08303575,159.95,159.92,3.00187569]
[1762696814562,0.04303575,159.95,159.92,3.00187569]
[1762696815062,3.08303575,159.95,159.92,3.00187569]
[1762696815457,3.04,159.94,159.92,0.04187569]
[1762696815667,3.04,159.94,159.86,2.96]
[1762696816055,8.6696,159.91,159.86,2.96]
[1762696816363,5.6296,159.91,159.86,2.96]
[1762696816551,3.08566458,159.9,159.87,3.00127086]
[1762696816755,8.71566458,159.9,159.87,3.00127086]
[1762696817772,3.04,159.89,159.87,0.04127086]
[1762696818152,3.08566458,159.9,159.87,3.00127086]
[1762696818662,0.04566458,159.9,159.87,3.00127086]
[1762696818864,3.08566458,159.9,159.87,3.00127086]
[1762696820365,8.71556458,159.9,159.87,3.00127086]
[1762696824565,8.71556458,159.9,159.87,0.04127086]
[1762696824566,8.6705,159.89,159.87,0.04127086]
[1762696824759,3.04,159.88,159.87,0.04127086]
[1762696825958,3.08566458,159.9,159.87,0.04127086]
[1762696826159,3.08566458,159.9,159.87,3.00127086]
[1762696826462,0.04566458,159.9,159.87,3.00127086]
[1762696826661,3.08566458,159.9,159.87,3.00127086]
[1762696827562,0.04566458,159.9,159.87,3.00127086]
[1762696827766,3.04,159.96,159.89,2.96]
[1762696827964,3.04,159.96,159.9,2.96]
[1762696828264,3.04,159.96,159.82,1.0882822]
[1762696828265,3.04,159.96,159.87,2.96]
[1762696828464,3.04,159.92,159.87,2.96]
[1762696828662,3.04,159.92,159.88,0.04362071]
[1762696828967,3.08074589,159.91,159.88,0.04362071]
[1762696829159,3.08074589,159.91,159.88,3.00362071]
[1762696829870,3.08074589,159.91,159.88,0.04362071]
[1762696830561,3.08074589,159.91,159.88,3.00362071]
[1762696831267,3.08074589,159.91,159.88,0.04362071]
[1762696831574,3.04,159.9,159.88,0.04362071]
[1762696833664,2.91,159.89,159.88,0.04362071]
[1762696835975,2.91,159.88,159.79,3.13]
[1762696836167,2.91,159.87,159.79,3.13]
[1762696836669,2.91,159.84,159.79,3.13]
[1762696837076,2.95424974,159.83,159.8,0.03981028]
[1762696837672,0.04424974,159.83,159.8,3.16981028]
[1762696839167,0.04424974,159.83,159.81,3.13]
[1762696841075,2.95424974,159.83,159.8,0.03981028]
[1762696842468,2.91,159.82,159.8,0.03981028]
[1762696843981,2.91,159.81,159.8,0.03981028]
[1762696846168,3.14,159.79,159.75,3.13]
[1762696846673,3.14,159.78,159.73,5.6357]
[1762696846877,3.14,159.78,159.74,3.0]
[1762696847076,3.14,159.77,159.74,0.04557353]
[1762696848285,3.14,159.76,159.74,0.04557353]
[1762696848877,0.04624023,159.78,159.74,3.04557353]
[1762696849776,3.18624023,159.78,159.74,3.04557353]
[1762696851078,3.14,159.77,159.74,3.04557353]
[1762696851575,3.14,159.77,159.74,0.04557353]
[1762696852780,0.04624023,159.78,159.74,3.04557353]
[1762696853281,3.18624023,159.78,159.74,3.04557353]
[1762696856188,3.18624023,159.78,159.75,3.0]
[1762696856690,3.18624023,159.78,159.74,8.68087353]
[1762696857781,3.18624023,159.78,159.74,3.04557353]
[1762696858190,3.18624023,159.78,159.74,0.04557353]
[1762696858889,7.88314906,159.78,159.74,0.04557353]
[1762696859091,3.14,159.77,159.74,0.04557353]
[1762696859486,3.18624023,159.78,159.75,3.0]
[1762696859691,3.18624023,159.78,159.74,0.04557353]
[1762696859990,3.18624023,159.78,159.74,3.04557353]
[1762696860586,3.18624023,159.78,159.74,0.04557353]
[1762696861588,3.14,159.76,159.74,0.04557353]
[1762696862093,3.01,159.74,159.66,3.0]
[1762696862693,4.70227566,159.75,159.62,66.0]
[1762696862694,3.01,159.72,159.68,8.6375]
[1762696862891,3.05581843,159.72,159.68,8.6375]
[1762696863779,3.05581843,159.72,159.69,3.0]
[1762696864892,3.05581843,159.72,159.68,8.6375]
[1762696865090,3.01,159.64,159.56,3.0]
[1762696865293,0.04164379,159.62,159.56,3.0]
[1762696865591,0.04164379,159.62,159.56,8.6415]
[1762696865786,0.04164379,159.62,159.57,3.0]
[1762696867286,3.05164379,159.62,159.57,3.0]
[1762696867791,3.05164379,159.62,159.43,18.47080222]
[1762696867792,3.01,159.6,159.53,3.0]
[1762696867990,0.0414024,159.58,159.53,3.0]
[1762696868184,3.0514024,159.58,159.53,3.0]
[1762696870297,3.0514024,159.58,159.49,3.0]
[1762696870592,0.04273746,159.55,159.49,3.0]
[1762696872197,0.04273746,159.55,159.51,3.0]
[1762696872394,0.04431613,159.55,159.51,3.0]
[1762696876393,0.04431613,159.55,159.51,8.6433]
[1762696876590,5.79119755,159.67,159.51,3.04008877]
[1762696876591,3.01,159.64,159.51,3.04008877]
[1762696876792,3.01,159.64,159.51,3.0]
[1762696877192,3.01,159.67,159.57,3.0]
[1762696877594,0.04237199,159.64,159.61,3.0]
[1762696878001,0.04237199,159.64,159.63,3.0]
[1762696878195,0.04237199,159.64,159.63,4.6968132]
[1762696878599,0.04237199,159.64,159.63,4.5286232]
[1762696879706,3.05237199,159.64,159.63,1.6968132]
[1762696879907,0.04237199,159.64,159.63,1.6968132]
[1762696880798,0.04237199,159.64,159.63,4.6968132]
[1762696882301,0.04237199,159.64,159.63,1.6968132]
[1762696882698,0.04237199,159.64,159.63,4.6968132]
[1762696884594,0.04237199,159.64,159.63,1.6968132]
[1762696884799,0.04237199,159.64,159.63,4.6968132]
[1762696887802,8.6474,159.69,159.63,4.6968132]
[1762696888001,8.6474,159.69,159.64,4.6968132]
[1762696888203,3.01,159.68,159.65,1.6968132]
[1762696888399,3.01,159.68,159.66,1.6968132]
[1762696888708,5.6374,159.69,159.65,3.0]
[1762696888709,0.04030791,159.69,159.67,1.6968132]
[1762696888900,0.04030791,159.69,159.68,4.6968132]
[1762696889097,0.04030791,159.69,159.68,1.6968132]
[1762696889406,3.05030791,159.69,159.68,1.6968132]
[1762696889801,3.05030791,159.69,159.68,1.63999307]
[1762696890006,4.31030791,159.69,159.68,1.63999307]
[1762696892911,4.31030791,159.69,159.68,9.307e-05]
[1762696893505,8.94428737,159.69,159.68,9.307e-05]
[1762696893813,0.04030791,159.69,159.65,3.1911079]
[1762696896105,0.04030791,159.69,159.67,3.15]
[1762696896313,4.83355733,159.77,159.67,3.15]
[1762696896510,4.83355733,159.76,159.67,3.15]
[1762696896710,8.5746,159.77,159.7,3.15]
[1762696897015,5.6346,159.77,159.7,3.15]
[1762696897412,0.04030562,159.75,159.73,3.15]
[1762696897617,0.04149686,159.76,159.73,3.15]
[1762696898116,2.98149686,159.76,159.72,0.04135918]
[1762696899107,8.5752,159.75,159.72,0.04135918]
[1762696902425,2.94,159.73,159.72,0.04135918]
[1762696903818,7.78171669,159.73,159.72,0.04135918]
[1762696906919,2.94,159.73,159.72,0.04135918]
[1762696907427,8.5856,159.74,159.72,0.04135918]
[1762696907616,2.95,159.73,159.72,0.04135918]
[1762696907814,8.5856,159.74,159.72,0.04135918]
[1762696908217,2.95,159.73,159.72,0.04135918]
[1762696910118,8.5856,159.74,159.72,0.04135918]
[1762696910319,2.95,159.73,159.72,0.04135918]
[1762696912522,8.5856,159.74,159.72,0.04135918]
[1762696913323,2.95,159.73,159.72,0.04135918]
[1762696915827,5.6356,159.74,159.72,0.04135918]
[1762696916125,8.5856,159.74,159.72,0.04135918]
[1762696916523,2.95,159.74,159.72,0.04135918]
[1762696916823,5.67639686,159.76,159.72,3.19135918]
[1762696916824,2.99149686,159.76,159.72,3.19135918]
[1762696917325,7.83964455,159.76,159.72,3.19135918]
[1762696918019,13.47454455,159.76,159.72,3.19135918]
[1762696918220,8.62639686,159.76,159.72,3.19135918]
[1762696918721,5.6352,159.75,159.72,3.19135918]
[1762696918927,8.5852,159.75,159.72,3.19135918]
[1762696920725,2.95,159.75,159.72,3.19135918]
[1762696921430,8.5852,159.75,159.72,3.19135918]
[1762696921628,7.81495671,159.74,159.72,0.04135918]
[1762696921926,2.95,159.74,159.72,0.04135918]
[1762696922529,8.7255,159.74,159.72,0.04135918]
[1762696922737,3.09,159.73,159.72,0.04135918]
[1762696923126,5.6355,159.74,159.72,0.04135918]
[1762696923436,8.76649686,159.76,159.72,3.03135918]
[1762696923829,0.04149686,159.76,159.72,3.03135918]
[1762696925432,0.04149686,159.76,159.73,2.99]
[1762696926029,0.04149686,159.76,159.75,2.99]
[1762696926230,5.79119755,159.84,159.75,2.99]
[1762696926538,7.88232441,159.83,159.75,2.99]
[1762696926738,3.09,159.83,159.77,2.99]
[1762696927136,0.04569488,159.82,159.79,2.99]
[1762696927834,3.13569488,159.82,159.79,2.99]
[1762696928337,8.76849488,159.82,159.78,0.04583413]
[1762696928633,3.09,159.8,159.78,0.04583413]
[1762696929941,8.7235,159.8,159.78,0.04583413]
[1762696930138,3.09,159.79,159.78,0.04583413]
[1762696931434,3.09,159.81,159.78,3.03583413]
[1762696931639,3.09,159.81,159.78,0.04583413]
[1762696932741,8.7231,159.81,159.78,0.04583413]
[1762696932943,7.87831735,159.8,159.78,0.04583413]
[1762696933145,3.09,159.79,159.78,0.04583413]
[1762696934943,0.04569488,159.82,159.78,0.04583413]
[1762696935245,3.09,159.81,159.78,3.03583413]
[1762696935946,8.7231,159.81,159.78,3.03583413]
[1762696936647,0.04569488,159.82,159.78,3.03583413]
[1762696936845,3.13569488,159.82,159.78,3.03583413]
[1762696937440,0.04569488,159.82,159.78,3.03583413]
[1762696938939,3.13569488,159.82,159.78,3.03583413]
[1762696939339,0.04569488,159.82,159.78,3.03583413]
[1762696944352,0.04569488,159.82,159.78,8.66973413]
[1762696944644,0.04569488,159.82,159.79,2.99]
[1762696945239,3.13569488,159.82,159.78,0.04583413]
[1762696945639,5.6331,159.81,159.78,0.04583413]
[1762696945847,3.09,159.81,159.78,0.04583413]
[1762696946342,8.7234,159.8,159.78,0.04583413]
[1762696948350,8.7234,159.8,159.78,3.03583413]
[1762696948652,5.6334,159.8,159.78,3.03583413]
[1762696949844,8.76859488,159.82,159.78,3.03583413]
[1762696950045,3.09,159.81,159.78,3.03583413]
[1762696951148,0.04569488,159.82,159.78,3.03583413]
[1762696951349,3.13569488,159.82,159.78,3.03583413]
[1762696951951,8.76839488,159.82,159.78,3.03583413]
[1762696952147,3.13569488,159.82,159.78,3.03583413]
[1762696952343,3.13569488,159.82,159.78,0.04583413]
[1762696952549,8.6134,159.8,159.78,0.04583413]
[1762696953550,2.98,159.8,159.78,3.02583413]
[1762696955749,8.6134,159.8,159.78,0.04583413]
[1762696956056,2.98,159.79,159.78,0.04583413]
[1762696956659,2.98,159.76,159.72,2.98]
[1762696956952,2.98,159.76,159.7,2.98]
[1762696957152,8.6138,159.79,159.7,2.98]
[1762696957355,2.98,159.79,159.7,2.98]
[1762696957554,2.98,159.79,159.71,2.98]
[1762696957859,0.04614931,159.76,159.73,2.98]
[1762696958052,0.04614931,159.76,159.74,2.98]
[1762696958855,0.04614931,159.76,159.74,8.6153]
[1762696959158,0.04614931,159.76,159.75,2.98]
[1762696960459,0.04614931,159.76,159.72,5.67734976]
[1762696960758,0.04614931,159.76,159.73,2.98]
[1762696960949,3.02614931,159.76,159.73,2.98]
[1762696961347,3.02614931,159.76,159.72,3.02144976]
[1762696962255,2.98,159.75,159.72,0.04144976]
[1762696962654,2.98,159.73,159.72,0.04144976]
[1762696962853,2.98,159.72,159.66,2.98]
[1762696963263,2.98,159.7,159.66,2.98]
[1762696963464,2.98,159.7,159.64,156.19993109]
[1762696963758,2.98,159.67,159.65,0.04431249]
[1762696963964,2.98,159.67,159.64,0.0401698]
[1762696964157,3.02626965,159.67,159.64,0.04269119]
[1762696964455,2.98,159.65,159.64,0.04269119]
[1762696964763,13.32076483,159.65,159.64,0.04269119]
[1762696964959,14.58076483,159.65,159.64,0.04269119]
[1762696965152,9.8789,159.65,159.64,0.04269119]
[1762696965355,2.98,159.61,159.53,65.92]
[1762696965555,2.98,159.61,159.53,2.98]
[1762696965957,2.98,159.64,159.53,2.98]
[1762696966358,0.04439876,159.6,159.57,0.04384026]
[1762696966957,0.04439876,159.6,159.57,3.18384026]
[1762696967464,3.05,159.68,159.57,3.18384026]
[1762696967660,3.05,159.68,159.57,3.14]
[1762696968255,3.05,159.65,159.57,3.14]
[1762696968459,3.09044281,159.63,159.59,0.04730332]
[1762696968662,3.09810538,159.63,159.59,0.04021503]
[1762696968860,0.04810538,159.63,159.59,3.18021503]
[1762696970168,3.09810538,159.63,159.59,0.04021503]
[1762696971066,3.09810538,159.63,159.59,3.18021503]
[1762696972361,0.04810538,159.63,159.59,3.18021503]
[1762696975672,0.04810538,159.63,159.62,3.14]
[1762696975874,3.05,159.7,159.62,3.14]
[1762696976775,0.04652364,159.68,159.65,3.14]
[1762696977869,0.04652364,159.68,159.65,8.7784]
[1762696978066,0.04652364,159.68,159.66,3.14]
[1762696978973,0.04652364,159.68,159.66,8.778]
[1762696979172,0.04652364,159.68,159.67,3.14]
[1762696980176,5.6351,159.75,159.68,3.14]
[1762696981164,0.0474912,159.73,159.7,3.18004176]
[1762696981368,3.0974912,159.73,159.7,0.04004176]
[1762696982970,2.93,159.72,159.7,0.04004176]
[1762696983769,8.5663,159.72,159.7,0.04004176]
[1762696983970,2.93,159.71,159.7,0.04004176]
[1762696985177,2.93,159.71,159.59,63.08]
[1762696985178,8.5671,159.7,159.63,2.95]
[1762696986073,5.6374,159.69,159.63,2.95]
[1762696986375,2.97285805,159.68,159.64,2.99309406]
[1762696986575,2.97285805,159.68,159.64,0.04309406]
[1762696987371,2.93,159.65,159.55,66.01]
[1762696987772,2.93,159.65,159.56,2.95]
[1762696988377,0.04368691,159.62,159.59,0.04656362]
[1762696988680,0.04368691,159.62,159.59,2.99656362]
[1762696990174,2.97368691,159.62,159.59,0.04656362]
[1762696991481,0.04368691,159.62,159.59,2.99656362]
[1762696996383,0.04368691,159.62,159.6,2.95]
[1762696997174,2.93,159.7,159.61,2.95]
[1762696998173,0.04051376,159.67,159.64,2.99434155]
[1762696999279,2.97051376,159.67,159.64,0.04434155]
[1762697000285,7.75566796,159.67,159.64,0.04434155]
[1762697000488,2.93,159.66,159.64,0.04434155]
[1762697000984,8.5684,159.66,159.64,0.04434155]
[1762697002188,0.04051376,159.67,159.64,2.99434155]
[1762697002386,2.97051376,159.67,159.64,2.99434155]
[1762697002685,2.97051376,159.67,159.64,0.04434155]
[1762697003186,0.04051376,159.67,159.64,2.99434155]
[1762697004889,2.97051376,159.67,159.64,0.04434155]
[1762697005988,8.60851376,159.67,159.64,0.04434155]
[1762697006185,2.93,159.66,159.64,0.04434155]
[1762697006385,7.73517107,159.65,159.64,0.04434155]
[1762697007591,2.93,159.64,159.57,2.95]
[1762697008083,7.73780249,159.63,159.57,2.95]
[1762697008285,2.93,159.63,159.57,2.95]
[1762697008588,2.97680938,159.62,159.58,0.04170171]
[1762697008776,2.97680938,159.62,159.58,0.04132245]
[1762697008983,8.61660938,159.62,159.58,2.99132245]
[1762697009378,8.5701,159.61,159.58,0.04132245]
[1762697009583,2.93,159.6,159.58,0.04132245]
[1762697010992,8.5705,159.6,159.58,0.04132245]
[1762697011785,2.93,159.59,159.58,0.04132245]
[1762697018193,2.93,159.61,159.58,0.04132245]
[1762697019995,2.93,159.6,159.58,0.04132245]
[1762697021187,2.97680938,159.62,159.58,3.05132245]
[1762697022096,8.61660938,159.62,159.58,0.04132245]
[1762697022296,2.93,159.61,159.58,0.04132245]
[1762697022996,2.93,159.6,159.58,0.04132245]
[1762697024192,2.93,159.59,159.58,0.04132245]
[1762697024600,8.61650938,159.62,159.58,3.05132245]
[1762697024897,2.93,159.61,159.58,3.05132245]
[1762697025096,0.04680938,159.62,159.58,3.05132245]
[1762697025496,2.97680938,159.62,159.58,3.05132245]
[1762697025697,2.97680938,159.62,159.58,0.04132245]
[1762697026094,2.97680938,159.62,159.58,3.03132245]
[1762697027098,2.91,159.61,159.58,3.03132245]
[1762697028296,8.5501,159.61,159.58,3.03132245]
[1762697028800,0.04680938,159.62,159.58,3.03132245]
[1762697029002,2.95680938,159.62,159.58,3.03132245]
[1762697029297,0.04680938,159.62,159.58,3.03132245]
[1762697030695,2.95680938,159.62,159.58,3.03132245]
[1762697033810,8.59660938,159.62,159.58,3.03132245]
[1762697035709,2.95680938,159.62,159.58,3.03132245]
[1762697036507,0.04680938,159.62,159.58,3.03132245]
[1762697037215,0.04680938,159.62,159.59,2.99]
[1762697037508,2.95680938,159.62,159.58,0.04132245]
[1762697038110,2.91,159.6,159.58,0.04132245]
[1762697040311,2.91,159.59,159.58,0.04132245]
[1762697042311,2.98,159.56,159.52,2.99]
[1762697043405,3.01993708,159.56,159.52,3.03178444]
[1762697044213,3.01993708,159.56,159.52,0.04178444]
[1762697045604,2.98,159.55,159.52,0.04178444]
[1762697046106,2.98,159.54,159.52,0.04178444]
[1762697046306,3.01993708,159.56,159.52,3.15178444]
[1762697048115,2.98,159.55,159.52,0.04178444]
[1762697049130,2.98,159.54,159.52,0.04178444]
[1762697050118,7.69063865,159.56,159.52,3.15178444]
[1762697050318,3.01993708,159.56,159.52,3.15178444]
[1762697052223,3.01993708,159.56,159.52,5.68488444]
[1762697052424,3.01993708,159.56,159.53,3.11]
[1762697052622,3.01993708,159.56,159.52,3.15178444]
[1762697055028,3.01993708,159.56,159.52,8.79488444]
[1762697055829,3.01993708,159.56,159.52,3.15178444]
[1762697056534,2.98,159.54,159.52,0.04178444]
[1762697057025,8.6227,159.54,159.52,0.04178444]
[1762697057232,8.6227,159.54,159.43,78.77973571]
[1762697057233,2.98,159.52,159.43,3.11]
[1762697057424,2.98,159.52,159.4,3.11]
[1762697057626,2.98,159.5,159.4,3.11]
[1762697058130,2.98,159.49,159.43,3.11]
[1762697058327,0.04141427,159.47,159.43,3.13491887]
[1762697058827,3.02141427,159.47,159.43,3.13491887]
[1762697059423,3.02141427,159.47,159.43,0.02491887]
[1762697059925,2.98,159.46,159.43,0.02491887]
[1762697060624,2.98,159.45,159.43,0.02491887]
[1762697061433,2.98,159.44,159.43,0.02491887]
[1762697066934,2.98,159.4,159.33,3.11]
[1762697067129,2.98,159.4,159.32,5.6502]
[1762697067337,2.98,159.4,159.29,3.11]
[1762697067527,2.98,159.43,159.34,3.11]
[1762697068038,0.04283404,159.4,159.34,3.11]
[1762697068228,0.04503817,159.39,159.34,3.11]
[1762697069124,0.04503817,159.39,159.38,3.11]
[1762697069629,0.04503817,159.39,159.38,4.37]
[1762697069929,2.98,159.46,159.39,8.7575]
[1762697070126,2.98,159.46,159.4,3.11]
[1762697070329,2.98,159.46,159.41,3.11]
[1762697070538,8.6244,159.49,159.41,3.11]
[1762697070833,0.03988287,159.47,159.43,3.15503817]
[1762697071137,3.02333203,159.47,159.43,3.15503817]
[1762697071329,3.02333203,159.47,159.43,0.04503817]
[1762697071330,2.98,159.45,159.43,0.04503817]
[1762697071530,3.02333203,159.47,159.43,0.04503817]
[1762697072338,3.02333203,159.47,159.43,2.98503817]
[1762697072537,0.04333203,159.47,159.43,2.98503817]
[1762697073137,3.24333203,159.47,159.43,2.98503817]
[1762697074530,0.04333203,159.47,159.43,2.98503817]
[1762697075139,0.04333203,159.47,159.45,2.94]
[1762697077839,0.04333203,159.47,159.46,2.94]
[1762697079334,3.24333203,159.47,159.44,2.94]
[1762697079535,3.24333203,159.47,159.43,2.98503817]
[1762697079942,3.24333203,159.47,159.43,8.63123817]
[1762697080141,0.04333203,159.47,159.44,2.94]
[1762697082038,0.04333203,159.47,159.45,8.5855]
[1762697083845,0.04333203,159.47,159.45,2.94]
[1762697084645,0.04333203,159.47,159.43,5.69123817]
[1762697084646,3.2,159.46,159.43,0.04503817]
[1762697085251,3.2,159.44,159.43,0.04503817]
[1762697086350,3.07,159.41,159.37,2.94]
[1762697086952,8.7162,159.44,159.37,2.94]
[1762697087455,3.10956809,159.42,159.37,2.94]
[1762697087644,0.04476285,159.41,159.37,2.94]
[1762697087954,0.04476285,159.41,159.37,8.5884]
[1762697088154,0.04476285,159.41,159.38,2.97]
[1762697088339,3.07,159.4,159.33,2.97]
[1762697088539,3.07,159.4,159.36,8.6187]
[1762697088744,0.04476285,159.41,159.37,2.97]
[1762697090047,0.04476285,159.41,159.37,8.6184]
[1762697090257,0.04476285,159.41,159.38,2.97]
[1762697091059,0.04476285,159.41,159.39,2.97]
[1762697092651,0.04476285,159.41,159.38,5.648]
[1762697092852,0.04476285,159.41,159.38,8.618]
[1762697093253,3.11476285,159.41,159.38,5.648]
[1762697093758,3.11476285,159.41,159.38,8.618]
[1762697094261,0.04476285,159.41,159.39,8.6177]
[1762697095559,0.04476285,159.41,159.39,5.6477]
[1762697097858,3.11476285,159.41,159.37,5.6483]
[1762697098559,3.11476285,159.41,159.37,8.6183]
[1762697098758,3.11476285,159.41,159.35,5.6491]
[1762697098958,3.11476285,159.41,159.35,8.6191]
[1762697099549,3.11476285,159.41,159.36,8.6188]
[1762697100059,3.11476285,159.41,159.37,2.97]
[1762697100861,0.04476285,159.41,159.38,2.97]
[1762697104258,3.14476285,159.41,159.38,2.97]
[1762697104458,3.14476285,159.41,159.35,8.589]
[1762697104658,3.14476285,159.41,159.35,2.94]
[1762697105266,3.14476285,159.41,159.38,2.94]
[1762697105666,0.04476285,159.41,159.38,2.94]
[1762697106467,3.14476285,159.41,159.38,2.94]
[1762697108469,3.14476285,159.41,159.37,5.6484]
[1762697108771,3.14476285,159.41,159.37,8.5884]
[1762697109460,3.14476285,159.41,159.37,2.94]
[1762697110161,3.1,159.4,159.34,66.0]
[1762697110758,3.1,159.37,159.34,68.94]
[1762697110966,0.04539016,159.37,159.34,2.94]
[1762697113174,7.78758784,159.46,159.36,2.94]
[1762697113372,7.78758784,159.46,159.37,2.94]
[1762697113373,3.1,159.46,159.37,2.94]
[1762697114063,10.72,159.45,159.4,2.94]
[1762697114264,0.04586509,159.44,159.42,2.94]
[1762697115776,0.04586509,159.44,159.43,2.94]
[1762697116166,10.72,159.45,159.44,8.586]
[1762697116372,8.7433,159.52,159.45,2.94]
[1762697116679,3.1,159.51,159.45,2.94]
[1762697116877,3.1,159.5,159.45,2.94]
[1762697117382,3.1465418,159.49,159.46,0.04121625]
[1762697118081,3.1465418,159.49,159.46,2.98121625]
[1762697118779,3.1465418,159.49,159.46,0.04121625]
[1762697121481,3.1,159.48,159.46,0.04121625]
[1762697122281,0.0465418,159.49,159.46,0.04121625]
[1762697122282,0.0465418,159.49,159.46,2.98121625]
[1762697122780,3.1465418,159.49,159.46,2.98121625]
[1762697123372,3.1465418,159.49,159.46,0.04121625]
[1762697124381,7.83587706,159.49,159.46,0.04121625]
[1762697126282,3.1465418,159.49,159.46,0.04121625]
[1762697126881,3.1465418,159.49,159.46,2.98121625]
[1762697127885,7.83692846,159.49,159.46,2.98121625]
[1762697128291,3.1465418,159.49,159.46,2.98121625]
[1762697128589,7.83658565,159.49,159.46,2.98121625]
[1762697129288,3.1465418,159.49,159.46,2.98121625]
[1762697130187,3.1465418,159.49,159.46,0.04121625]
[1762697130387,3.1,159.47,159.34,2.94]
[1762697130593,3.1,159.45,159.34,2.94]
[1762697130796,3.1,159.39,159.34,2.94]
[1762697130980,3.1,159.39,159.31,62.98]
[1762697130981,3.1,159.39,159.31,71.5704]
[1762697131186,3.1,159.39,159.31,2.94]
[1762697131389,3.1,159.36,159.33,0.04652488]
[1762697131585,3.1,159.36,159.31,2.94]
[1762697131788,3.1,159.36,159.32,0.04414676]
[1762697132094,3.06,159.35,159.32,0.04414676]
[1762697133291,3.06,159.35,159.24,3.21]
[1762697133496,3.06,159.33,159.24,3.21]
[1762697133890,3.06,159.3,159.24,3.21]
[1762697134294,3.06,159.28,159.24,3.21]
[1762697135400,3.06,159.27,159.17,3.21]
[1762697135606,0.04559063,159.24,159.17,3.21]
[1762697135906,0.04559063,159.24,159.2,3.21]
[1762697136099,0.04168663,159.24,159.2,3.21]
[1762697136505,0.04168663,159.24,159.23,3.21]
[1762697136706,0.04712713,159.25,159.23,3.21]
[1762697137201,0.04712713,159.25,159.23,8.8632]
[1762697137408,0.04712713,159.25,159.24,3.21]
[1762697137708,0.04459881,159.26,159.24,3.21]
[1762697138304,0.04459881,159.26,159.23,3.21]
[1762697138807,3.10459881,159.26,159.22,8.8636]
[1762697139608,3.10459881,159.26,159.23,3.21]
[1762697139910,3.10459881,159.26,159.19,3.21]
[1762697140113,0.04000511,159.24,159.19,3.21]
[1762697140507,3.10000511,159.24,159.19,3.21]
[1762697141112,0.04000511,159.24,159.2,3.21]
[1762697142915,0.04000511,159.24,159.21,3.21]
[1762697143510,10.02,159.29,159.21,3.21]
[1762697143907,10.02,159.29,159.28,3.21]
[1762697144807,10.02,159.29,159.27,0.04589735]
[1762697144808,3.06,159.28,159.27,0.04589735]
[1762697145305,10.02,159.29,159.28,3.21]
[1762697147814,10.02,159.29,159.27,5.69769735]
[1762697148010,10.02,159.29,159.27,0.04589735]
[1762697149210,10.02,159.29,159.27,3.16589735]
[1762697150014,10.02,159.29,159.28,3.12]
[1762697151513,0.04143332,159.3,159.29,3.12]
[1762697152718,0.04143332,159.3,159.28,5.6515]
[1762697153108,0.04143332,159.3,159.28,8.7715]
[1762697153312,0.04143332,159.3,159.28,3.12]
[1762697153520,0.04143332,159.3,159.27,0.04589735]
[1762697154420,0.04143332,159.3,159.27,8.81779735]
[1762697154922,0.04143332,159.3,159.28,3.12]
[1762697156418,0.04143332,159.3,159.28,8.7716]
[1762697158620,0.04143332,159.3,159.27,0.04589735]
[1762697158826,0.04143332,159.3,159.27,3.16589735]
[1762697159525,0.04143332,159.3,159.28,5.6514]
[1762697160125,3.12143332,159.3,159.28,5.6514]
[1762697160818,3.12143332,159.3,159.27,0.04589735]
[1762697161121,3.08,159.42,159.28,3.12]
[1762697161322,3.08,159.42,159.29,3.12]
[1762697161631,3.08,159.42,159.33,3.12]
[1762697161923,8.6376,159.4,159.34,5.6495]
[1762697162122,3.03781129,159.39,159.35,0.03998879]
[1762697163122,3.03781129,159.39,159.35,3.15998879]
[1762697163424,2.99,159.38,159.35,0.03998879]
[1762697165127,8.23781129,159.39,159.35,8.80888879]
[1762697165331,8.23781129,159.39,159.36,3.12]
[1762697165921,2.99,159.38,159.35,0.03998879]
[1762697167229,8.23781129,159.39,159.35,3.15998879]
[1762697168122,8.23781129,159.39,159.36,3.12]